fUST/lending_fUST_20250528
["ID","MTS","AMOUNT","RATE_DAILY","PERIOD"]
[362596084,1748370632393,-4488.84941528,0.000184,2]
[362596086,1748370632404,-4488.84941528,0.000184,2]
[362596088,1748370632413,-4488.84941528,0.000184,2]
[362596090,1748370632423,-4488.84941528,0.000184,2]
[362596092,1748370632433,-4488.84941528,0.000184,2]
[362596094,1748370632442,-4488.84941528,0.000184,2]
[362596096,1748370632452,-1668.7014499,0.00018509,2]
[362596098,1748370632462,-4488.84941528,0.00018693,2]
[362596100,1748370632471,-1000.0,0.00018812,7]
[362596102,1748370632481,-1000.0,0.00018812,7]
[362596104,1748370632491,-1000.0,0.00018812,7]
[362596106,1748370632499,-1000.0,0.00018812,7]
[362596108,1748370632509,-1000.0,0.00018812,7]
[362596111,1748370632518,-1000.0,0.00018812,7]
[362596113,1748370632528,-1000.0,0.00018812,7]
[362596114,1748370632538,-1000.0,0.00018812,7]
[362596117,1748370632548,-344.33937566,0.000189,2]
[362596119,1748370632564,-1000.0,0.00018951,2]
[362596121,1748370632575,-1000.0,0.00018951,2]
[362596123,1748370632585,-1000.0,0.00018951,2]
[362596125,1748370632595,-1000.0,0.00018951,2]
[362596127,1748370632605,-1000.0,0.00018951,2]
[362596129,1748370632615,-1000.0,0.00018951,2]
[362596131,1748370632625,-1000.0,0.00018951,2]
[362596133,1748370632635,-4488.84941528,0.00019003,2]
[362596135,1748370632644,-631.49251403,0.00019058,2]
[362596137,1748370632654,-447.3515898,0.00019072,2]
[362596139,1748370632664,-500.0,0.00019072,2]
[362596141,1748370632673,-500.0,0.000191,2]
[362596143,1748370632683,-232.28505105,0.00019166,2]
[362596146,1748370632694,-350.01826393,0.00019177,2]
[362596148,1748370632704,-500.0,0.00019177,2]
[362596150,1748370632714,-500.0,0.00019177,2]
[362596152,1748370632728,-500.0,0.00019177,2]
[362596154,1748370632738,-500.0,0.00019177,2]
[362596156,1748370632748,-371.42580509,0.00019177,2]
[362596158,1748370632758,-446.39410679,0.00019177,2]
[362596160,1748370632768,-500.0,0.00019177,2]
[362596162,1748370632778,-500.0,0.00019177,2]
[362596164,1748370632788,-500.0,0.00019177,2]
[362596167,1748370632798,-500.0,0.00019177,2]
[362596169,1748370632807,-500.0,0.00019177,2]
[362596171,1748370632818,-500.0,0.00019177,2]
[362596173,1748370632828,-500.0,0.00019177,2]
[362596175,1748370632838,-500.0,0.00019177,2]
[362596177,1748370632848,-500.0,0.00019177,2]
[362596179,1748370632858,-162.3,0.00019178,2]
[362596181,1748370632868,-430.0,0.00019178,2]
[362596183,1748370632878,-500.0,0.00019178,2]
[362596185,1748370632888,-430.0,0.00019178,2]
[362596187,1748370632898,-430.0,0.00019178,2]
[362596189,1748370632908,-430.0,0.00019178,2]
[362596191,1748370632918,-430.0,0.00019178,2]
[362596193,1748370632928,-430.0,0.00019178,2]
[362596195,1748370632937,-430.0,0.00019178,2]
[362596197,1748370632947,-384.26522277,0.00019178,2]
[362596199,1748370632959,-430.0,0.00019178,2]
[362596201,1748370632968,-430.0,0.00019178,2]
[362596203,1748370632978,-687.01,0.00019178,2]
[362596204,1748370632987,-475.63,0.00019178,2]
[362596205,1748370632996,-430.0,0.00019178,2]
[362596206,1748370633006,-430.0,0.00019178,2]
[362596207,1748370633016,-1003.84,0.00019178,2]
[362596208,1748370633026,-430.0,0.00019178,2]
[362596209,1748370633037,-430.0,0.00019178,2]
[362596210,1748370633047,-430.0,0.00019178,2]
[362596211,1748370633058,-430.0,0.00019178,2]
[362596212,1748370633067,-430.0,0.00019178,2]
[362596213,1748370633078,-341.99279265,0.00019178,2]
[362596214,1748370633088,-430.0,0.00019178,2]
[362596215,1748370633098,-430.0,0.00019178,2]
[362596216,1748370633108,-430.0,0.00019178,2]
[362596217,1748370633118,-430.0,0.00019178,2]
[362596218,1748370633128,-430.0,0.00019178,2]
[362596219,1748370633137,-430.0,0.00019178,2]
[362596220,1748370633147,-1052.62,0.00019178,2]
[362596221,1748370633157,-430.0,0.00019178,2]
[362596222,1748370633167,-430.0,0.00019178,2]
[362596223,1748370633181,-430.0,0.00019178,2]
[362596224,1748370633191,-430.0,0.00019178,2]
[362596225,1748370633201,-430.0,0.00019178,2]
[362596226,1748370633213,-430.0,0.00019178,2]
[362596227,1748370633224,-430.0,0.00019178,2]
[362596228,1748370633234,-430.0,0.00019178,2]
[362596229,1748370633242,-430.0,0.00019178,2]
[362596230,1748370633253,-430.0,0.00019178,2]
[362596231,1748370633263,-430.0,0.00019178,2]
[362596232,1748370633274,-430.0,0.00019178,2]
[362596233,1748370633283,-430.0,0.00019178,2]
[362596234,1748370633293,-430.0,0.00019178,2]
[362596236,1748370633303,-430.0,0.00019178,2]
[362596238,1748370633313,-430.0,0.00019178,2]
[362596240,1748370633322,-430.0,0.00019178,2]
[362596242,1748370633335,-742.28,0.00019178,2]
[362596244,1748370633345,-430.0,0.00019178,2]
[362596246,1748370633355,-430.0,0.00019178,2]
[362596248,1748370633365,-430.0,0.00019178,2]
[362596250,1748370633374,-430.0,0.00019178,2]
[362596252,1748370633384,-503.65612292,0.00019178,2]
[362596254,1748370633394,-430.0,0.00019178,2]
[362596257,1748370633404,-430.0,0.00019178,2]
[362596259,1748370633413,-430.0,0.00019178,2]
[362596261,1748370633424,-430.0,0.00019178,2]
[362596284,1748370633635,-430.0,0.00019178,2]
[362596286,1748370633647,-430.0,0.00019178,2]
[362596288,1748370633656,-430.0,0.00019178,2]
[362596290,1748370633666,-430.0,0.00019178,2]
[362596292,1748370633676,-430.0,0.00019178,2]
[362596294,1748370633685,-430.0,0.00019178,2]
[362596296,1748370633695,-430.0,0.00019178,2]
[362596298,1748370633706,-430.0,0.00019178,2]
[362596300,1748370633718,-430.0,0.00019178,2]
[362596302,1748370633727,-430.0,0.00019178,2]
[362596304,1748370633737,-430.0,0.00019178,2]
[362596306,1748370633747,-430.0,0.00019178,2]
[362596309,1748370633756,-430.0,0.00019178,2]
[362596311,1748370633767,-430.0,0.00019178,2]
[362596313,1748370633777,-430.0,0.00019178,2]
[362596315,1748370633788,-430.0,0.00019178,2]
[362596317,1748370633798,-430.0,0.00019178,2]
[362596319,1748370633808,-430.0,0.00019178,2]
[362596321,1748370633818,-430.0,0.00019178,2]
[362596323,1748370633827,-430.0,0.00019178,2]
[362596325,1748370633838,-425.15323334,0.00019178,2]
[362596326,1748370633847,-430.0,0.00019178,2]
[362596327,1748370633857,-430.0,0.00019178,2]
[362596329,1748370633867,-430.0,0.00019178,2]
[362596331,1748370633877,-430.0,0.00019178,2]
[362596332,1748370633887,-430.0,0.00019178,2]
[362596334,1748370633896,-430.0,0.00019178,2]
[362596336,1748370633906,-430.0,0.00019178,2]
[362596337,1748370633917,-430.0,0.00019178,2]
[362596339,1748370633926,-430.0,0.00019178,2]
[362596341,1748370633936,-430.0,0.00019178,2]
[362596343,1748370633946,-430.0,0.00019178,2]
[362596346,1748370633957,-430.0,0.00019178,2]
[362596347,1748370633967,-430.0,0.00019178,2]
[362596348,1748370633976,-430.0,0.00019178,2]
[362596350,1748370633986,-367.67524513,0.00019178,2]
[362596352,1748370633996,-430.0,0.00019178,2]
[362596354,1748370634006,-430.0,0.00019178,2]
[362596356,1748370634016,-430.0,0.00019178,2]
[362596359,1748370634026,-430.0,0.00019178,2]
[362596360,1748370634036,-430.0,0.00019178,2]
[362596363,1748370634046,-430.0,0.00019178,2]
[362596364,1748370634057,-430.0,0.00019178,2]
[362596367,1748370634067,-430.0,0.00019178,2]
[362596369,1748370634078,-430.0,0.00019178,2]
[362596371,1748370634088,-430.0,0.00019178,2]
[362596373,1748370634098,-430.0,0.00019178,2]
[362596375,1748370634108,-430.0,0.00019178,2]
[362596377,1748370634118,-430.0,0.00019178,2]
[362596379,1748370634128,-430.0,0.00019178,2]
[362596381,1748370634138,-430.0,0.00019178,2]
[362596383,1748370634148,-430.0,0.00019178,2]
[362596385,1748370634158,-430.0,0.00019178,2]
[362596388,1748370634183,-430.0,0.00019178,2]
[362596390,1748370634196,-437.88,0.00019178,2]
[362596392,1748370634207,-430.0,0.00019178,2]
[362596394,1748370634219,-430.0,0.00019178,2]
[362596395,1748370634230,-430.0,0.00019178,2]
[362596396,1748370634240,-430.0,0.00019178,2]
[362596397,1748370634250,-430.0,0.00019178,2]
[362596398,1748370634262,-430.0,0.00019178,2]
[362596399,1748370634273,-430.0,0.00019178,2]
[362596400,1748370634283,-430.0,0.00019178,2]
[362596401,1748370634294,-430.0,0.00019178,2]
[362596402,1748370634305,-430.0,0.00019178,2]
[362596403,1748370634314,-430.0,0.00019178,2]
[362596404,1748370634325,-500.0,0.00019178,2]
[362596405,1748370634335,-430.0,0.00019178,2]
[362596406,1748370634346,-481.80577866,0.00019178,2]
[362596407,1748370634356,-500.0,0.00019178,2]
[362596408,1748370634367,-430.0,0.00019178,2]
[362596409,1748370634376,-151.0,0.00019178,2]
[362596410,1748370634386,-500.0,0.00019182,2]
[362596411,1748370634397,-156.587,0.00019233,2]
[362596412,1748370634407,-162.380719,0.00019288,2]
[362596413,1748370634418,-4488.84941528,0.00019314,2]
[362596414,1748370634428,-168.3888056,0.00019343,2]
[362596415,1748370634438,-474.27086151,0.00019352,2]
[362596416,1748370634449,-174.61919141,0.00019398,2]
[362596417,1748370634461,-631.49251403,0.0001943,2]
[362596418,1748370634470,-555.51,0.00019442,3]
[362596419,1748370634480,-254.14470734,0.00019451,2]
[362596420,1748370634490,-430.0,0.00019451,2]
[362596421,1748370634500,-481.09,0.00019451,2]
[362596422,1748370634510,-420.0,0.00019451,2]
[362596423,1748370634520,-442.82451361,0.00019451,2]
[362596424,1748370634530,-414.0,0.00019451,2]
[362596425,1748370634540,-430.0,0.00019451,2]
[362596426,1748370634551,-430.0,0.00019451,2]
[362596427,1748370634561,-430.0,0.00019451,2]
[362596428,1748370634571,-186.2,0.00019451,2]
[362596429,1748370634581,-430.0,0.00019451,2]
[362596430,1748370634591,-430.0,0.00019451,2]
[362596431,1748370634601,-571.86901151,0.00019451,2]
[362596432,1748370634611,-430.0,0.00019451,2]
[362596433,1748370634622,-430.0,0.00019451,2]
[362596434,1748370634632,-160.99538037,0.00019451,2]
[362596435,1748370634642,-340.0,0.00019451,2]
[362596436,1748370634652,-408.16070578,0.00019451,2]
[362596437,1748370634662,-500.0,0.00019451,2]
[362596438,1748370634672,-430.0,0.00019451,2]
[362596439,1748370634682,-430.0,0.00019451,2]
[362596440,1748370634691,-430.0,0.00019451,2]
[362596441,1748370634701,-552.86536947,0.00019451,2]
[362596442,1748370634711,-206.25348547,0.00019451,2]
[362596443,1748370634721,-430.0,0.00019451,2]
[362596444,1748370634731,-258.61,0.00019451,2]
[362596445,1748370634740,-567.81631446,0.00019451,2]
[362596446,1748370634752,-430.0,0.00019451,2]
[362596447,1748370634762,-430.0,0.00019451,2]
[362596448,1748370634772,-430.0,0.00019451,2]
[362596449,1748370634781,-454.7468304,0.00019451,2]
[362596450,1748370634796,-430.0,0.00019451,2]
[362596451,1748370634806,-385.23465037,0.00019451,2]
[362596452,1748370634815,-385.56374583,0.00019451,2]
[362596453,1748370634826,-430.0,0.00019451,2]
[362596454,1748370634836,-430.0,0.00019451,2]
[362596455,1748370634846,-430.0,0.00019451,2]
[362596456,1748370634856,-430.0,0.00019451,2]
[362596457,1748370634866,-284.12473251,0.00019451,2]
[362596458,1748370634876,-430.0,0.00019451,2]
[362596459,1748370634886,-430.0,0.00019451,2]
[362596460,1748370634895,-418.3081927,0.00019451,2]
[362596461,1748370634906,-430.0,0.00019451,2]
[362596462,1748370634915,-430.0,0.00019451,2]
[362596463,1748370634925,-394.97672165,0.00019451,2]
[362596464,1748370634935,-430.0,0.00019451,2]
[362596465,1748370634945,-430.0,0.00019451,2]
[362596466,1748370634956,-430.0,0.00019451,2]
[362596467,1748370634966,-430.0,0.00019452,2]
[362596468,1748370634976,-430.0,0.00019452,2]
[362596469,1748370634986,-687.01,0.00019452,2]
[362596470,1748370634996,-475.63,0.00019452,2]
[362596471,1748370635006,-430.0,0.00019452,2]
[362596472,1748370635016,-430.0,0.00019452,2]
[362596473,1748370635026,-1003.84,0.00019452,2]
[362596474,1748370635036,-507.96,0.00019452,2]
[362596475,1748370635045,-376.51725184,0.00019452,2]
[362596476,1748370635056,-430.0,0.00019452,2]
[362596477,1748370635066,-430.0,0.00019452,2]
[362596478,1748370635076,-315.06,0.00019452,2]
[362596479,1748370635086,-430.0,0.00019452,2]
[362596480,1748370635096,-430.0,0.00019452,2]
[362596481,1748370635106,-190.76,0.00019452,2]
[362596482,1748370635115,-1052.62,0.00019452,2]
[362596483,1748370635125,-430.0,0.00019452,2]
[362596484,1748370635135,-430.0,0.00019452,2]
[362596485,1748370635145,-430.0,0.00019452,2]
[362596486,1748370635155,-430.0,0.00019452,2]
[362596487,1748370635165,-430.0,0.00019452,2]
[362596488,1748370635176,-430.0,0.00019452,2]
[362596489,1748370635187,-430.0,0.00019452,2]
[362596490,1748370635196,-389.60399174,0.00019452,2]
[362596491,1748370635206,-430.0,0.00019452,2]
[362596492,1748370635215,-430.0,0.00019452,2]
[362596493,1748370635225,-510.0,0.00019452,2]
[362596494,1748370635235,-430.0,0.00019452,2]
[362596495,1748370635245,-742.28,0.00019452,2]
[362596496,1748370635257,-430.0,0.00019452,2]
[362596497,1748370635266,-482.94,0.00019452,2]
[362596498,1748370635275,-430.0,0.00019452,2]
[362596499,1748370635285,-430.0,0.00019452,2]
[362596500,1748370635295,-430.0,0.00019452,2]
[362596501,1748370635304,-430.0,0.00019452,2]
[362596502,1748370635314,-430.0,0.00019452,2]
[362596503,1748370635323,-430.0,0.00019452,2]
[362596504,1748370635333,-430.0,0.00019452,2]
[362596505,1748370635342,-430.0,0.00019452,2]
[362596506,1748370635352,-430.0,0.00019452,2]
[362596507,1748370635361,-430.0,0.00019452,2]
[362596508,1748370635370,-430.0,0.00019452,2]
[362596509,1748370635380,-430.0,0.00019452,2]
[362596510,1748370635390,-430.0,0.00019452,2]
[362596511,1748370635400,-430.0,0.00019452,2]
[362596512,1748370635409,-430.0,0.00019452,2]
[362596513,1748370635419,-430.0,0.00019452,2]
[362596514,1748370635429,-528.69128461,0.00019452,2]
[362596515,1748370635439,-430.0,0.00019452,2]
[362596516,1748370635449,-430.0,0.00019452,2]
[362596517,1748370635458,-430.0,0.00019452,2]
[362596518,1748370635468,-430.0,0.00019452,2]
[362596519,1748370635478,-430.0,0.00019452,2]
[362596520,1748370635487,-430.0,0.00019452,2]
[362596521,1748370635497,-430.0,0.00019452,2]
[362596522,1748370635507,-430.0,0.00019452,2]
[362596523,1748370635516,-430.0,0.00019452,2]
[362596524,1748370635526,-430.0,0.00019452,2]
[362596525,1748370635535,-430.0,0.00019452,2]
[362596526,1748370635545,-430.0,0.00019452,2]
[362596527,1748370635554,-430.0,0.00019452,2]
[362596528,1748370635564,-430.0,0.00019452,2]
[362596529,1748370635574,-430.0,0.00019452,2]
[362596530,1748370635584,-430.0,0.00019452,2]
[362596531,1748370635594,-430.0,0.00019452,2]
[362596532,1748370635603,-430.0,0.00019452,2]
[362596533,1748370635614,-430.0,0.00019452,2]
[362596534,1748370635624,-430.0,0.00019452,2]
[362596535,1748370635634,-430.0,0.00019452,2]
[362596536,1748370635643,-430.0,0.00019452,2]
[362596537,1748370635652,-430.0,0.00019452,2]
[362596538,1748370635662,-437.88,0.00019452,2]
[362596539,1748370635672,-430.0,0.00019452,2]
[362596540,1748370635682,-430.0,0.00019452,2]
[362596541,1748370635691,-430.0,0.00019452,2]
[362596542,1748370635701,-430.0,0.00019452,2]
[362596543,1748370635711,-430.0,0.00019452,2]
[362596544,1748370635720,-430.0,0.00019452,2]
[362596545,1748370635730,-306.68088598,0.00019453,2]
[362596546,1748370635740,-212.62946336,0.00019491,2]
[362596547,1748370635750,-19629.250546,0.000195,2]
[362596548,1748370635767,-4488.84941528,0.00019624,2]
[362596549,1748370635777,-500.0,0.0001964,2]
[362596550,1748370635786,-1013.19229648,0.00019648,2]
[362596551,1748370635795,-430.0,0.00019725,2]
[362596552,1748370635804,-500.0,0.00019725,2]
[362596553,1748370635815,-430.0,0.00019725,2]
[362596554,1748370635824,-430.0,0.00019725,2]
[362596555,1748370635834,-430.0,0.00019725,2]
[362596556,1748370635843,-266.59,0.00019725,2]
[362596557,1748370635853,-430.0,0.00019725,2]
[362596558,1748370635863,-430.0,0.00019725,2]
[362596559,1748370635872,-430.0,0.00019726,2]
[362596560,1748370635882,-430.0,0.00019726,2]
[362596561,1748370635892,-687.01,0.00019726,2]
[362596562,1748370635902,-475.63,0.00019726,2]
[362596563,1748370635911,-430.0,0.00019726,2]
[362596564,1748370635921,-430.0,0.00019726,2]
[362596565,1748370635931,-1003.84,0.00019726,2]
[362596566,1748370635940,-430.0,0.00019726,2]
[362596567,1748370635950,-430.0,0.00019726,2]
[362596568,1748370635961,-430.0,0.00019726,2]
[362596569,1748370635971,-430.0,0.00019726,2]
[362596570,1748370635980,-1052.62,0.00019726,2]
[362596571,1748370635990,-430.0,0.00019726,2]
[362596572,1748370635999,-430.0,0.00019726,2]
[362596573,1748370636009,-430.0,0.00019726,2]
[362596574,1748370636018,-430.0,0.00019726,2]
[362596575,1748370636028,-430.0,0.00019726,2]
[362596576,1748370636037,-195.33850033,0.00019726,2]
[362596577,1748370636047,-430.0,0.00019726,2]
[362596578,1748370636057,-154.88,0.00019726,2]
[362596579,1748370636067,-742.28,0.00019726,2]
[362596580,1748370636076,-430.0,0.00019726,2]
[362596581,1748370636086,-430.0,0.00019726,2]
[362596582,1748370636096,-430.0,0.00019726,2]
[362596583,1748370636106,-430.0,0.00019726,2]
[362596584,1748370636115,-430.0,0.00019726,2]
[362596585,1748370636125,-430.0,0.00019726,2]
[362596586,1748370636135,-430.0,0.00019726,2]
[362596587,1748370636145,-430.0,0.00019726,2]
[362596588,1748370636155,-430.0,0.00019726,2]
[362596589,1748370636164,-430.0,0.00019726,2]
[362596590,1748370636174,-430.0,0.00019726,2]
[362596591,1748370636193,-430.0,0.00019726,2]
[362596592,1748370636203,-430.0,0.00019726,2]
[362596593,1748370636213,-483.81,0.00019726,2]
[362596594,1748370636222,-430.0,0.00019726,2]
[362596595,1748370636232,-430.0,0.00019726,2]
[362596596,1748370636242,-430.0,0.00019726,2]
[362596597,1748370636251,-430.0,0.00019726,2]
[362596598,1748370636261,-430.0,0.00019726,2]
[362596599,1748370636270,-475.52,0.00019726,2]
[362596600,1748370636280,-430.0,0.00019726,2]
[362596601,1748370636289,-430.0,0.00019726,2]
[362596602,1748370636299,-528.73,0.00019726,2]
[362596603,1748370636308,-430.0,0.00019726,2]
[362596604,1748370636318,-430.0,0.00019726,2]
[362596605,1748370636327,-430.0,0.00019726,2]
[362596606,1748370636337,-430.0,0.00019726,2]
[362596607,1748370636346,-430.0,0.00019726,2]
[362596608,1748370636356,-445.29519821,0.00019726,2]
[362596609,1748370636366,-437.88,0.00019726,2]
[362596610,1748370636375,-430.0,0.00019726,2]
[362596611,1748370636385,-430.0,0.00019726,2]
[362596612,1748370636395,-430.0,0.00019726,2]
[362596613,1748370636404,-162.12859635,0.00019726,2]
[362596614,1748370636414,-430.0,0.00019726,2]
[362596615,1748370636423,-500.0,0.00019827,2]
[362596616,1748370636433,-4488.84941528,0.00019934,2]
[362596617,1748370636442,-474.27086148,0.00019989,2]
[362596618,1748370636451,-430.0,0.00019999,2]
[362596619,1748370636461,-430.0,0.00019999,2]
[362596620,1748370636470,-430.0,0.00019999,2]
[362596621,1748370636480,-430.0,0.00019999,2]
[362596622,1748370636490,-374.79,0.00019999,2]
[362596623,1748370636501,-687.01,0.0002,2]
[362596624,1748370636511,-475.63,0.0002,2]
[362596625,1748370636520,-1003.84,0.0002,2]
[362596626,1748370636530,-510.13805504,0.0002,2]
[362596627,1748370636539,-430.0,0.0002,2]
[362596628,1748370636549,-430.0,0.0002,2]
[362596629,1748370636558,-1052.62,0.0002,2]
[362596630,1748370636568,-430.0,0.0002,2]
[362596631,1748370636578,-430.0,0.0002,2]
[362596632,1748370636587,-430.0,0.0002,2]
[362596633,1748370636597,-742.28,0.0002,2]
[362596634,1748370636608,-430.0,0.0002,2]
[362596635,1748370636740,-430.0,0.0002,2]
[362596636,1748370636750,-430.0,0.0002,2]
[362596637,1748370636760,-461.55948894,0.0002,2]
[362596638,1748370636769,-337.35910415,0.0002,2]
[362596639,1748370636779,-430.0,0.0002,2]
[362596640,1748370636788,-430.0,0.0002,2]
[362596641,1748370636798,-430.0,0.0002,2]
[362596642,1748370636807,-430.0,0.0002,2]
[362596643,1748370636817,-430.0,0.0002,2]
[362596644,1748370636826,-430.0,0.0002,2]
[362596645,1748370636835,-430.0,0.0002,2]
[362596646,1748370636845,-430.0,0.0002,2]
[362596647,1748370636855,-430.0,0.0002,2]
[362596648,1748370636864,-430.0,0.0002,2]
[362596649,1748370636874,-430.0,0.0002,2]
[362596650,1748370636883,-430.0,0.0002,2]
[362596651,1748370636893,-430.0,0.0002,2]
[362596652,1748370636903,-430.0,0.0002,2]
[362596653,1748370636912,-437.88,0.0002,2]
[362596654,1748370636922,-552.0,0.0002,2]
[362596655,1748370636934,-430.0,0.0002,2]
[362596656,1748370636949,-430.0,0.0002,2]
[362596657,1748370636960,-420.0,0.00020067,2]
[362596658,1748370636970,-427.99041,0.00020187,2]
[362596659,1748370636979,-500.0,0.00020188,2]
[362596660,1748370636988,-4488.84941528,0.00020245,2]
[362596661,1748370636998,-776.0,0.00020247,2]
[362596662,1748370637007,-430.0,0.00020273,2]
[362596663,1748370637016,-687.01,0.00020273,2]
[362596664,1748370637026,-475.63,0.00020273,2]
[362596665,1748370637035,-1003.84,0.00020273,2]
[362596666,1748370637045,-430.0,0.00020273,2]
[362596667,1748370637055,-430.0,0.00020273,2]
[362596668,1748370637065,-430.0,0.00020273,2]
[362596669,1748370637074,-1052.62,0.00020273,2]
[362596670,1748370637084,-451.67,0.00020273,2]
[362596671,1748370637093,-430.0,0.00020273,2]
[362596672,1748370637102,-430.0,0.00020273,2]
[362596673,1748370637111,-430.0,0.00020273,2]
[362596674,1748370637121,-742.28,0.00020273,2]
[362596675,1748370637131,-430.0,0.00020273,2]
[362596676,1748370637140,-452.53,0.00020273,2]
[362596677,1748370637149,-430.0,0.00020273,2]
[362596678,1748370637158,-430.0,0.00020273,2]
[362596679,1748370637168,-430.0,0.00020273,2]
[362596680,1748370637179,-365.45,0.00020273,2]
[362596681,1748370637189,-430.0,0.00020273,2]
[362596682,1748370637198,-430.0,0.00020273,2]
[362596683,1748370637207,-430.0,0.00020273,2]
[362596684,1748370637217,-430.0,0.00020273,2]
[362596685,1748370637228,-437.88,0.00020273,2]
[362596686,1748370637238,-430.0,0.00020273,2]
[362596687,1748370637247,-776.0,0.00020274,2]
[362596688,1748370637257,-776.0,0.00020302,2]
[362596689,1748370637267,-776.0,0.00020329,2]
[362596690,1748370637277,-776.0,0.00020357,2]
[362596691,1748370637286,-776.0,0.00020384,2]
[362596692,1748370637295,-776.0,0.00020411,2]
[362596693,1748370637304,-776.0,0.00020439,2]
[362596694,1748370637313,-776.0,0.00020466,2]
[362596695,1748370637322,-776.0,0.00020494,2]
[362596696,1748370637331,-776.0,0.00020521,2]
[362596697,1748370637341,-430.0,0.00020547,2]
[362596698,1748370637350,-687.01,0.00020547,2]
[362596699,1748370637359,-475.63,0.00020547,2]
[362596700,1748370637368,-1003.84,0.00020547,2]
[362596701,1748370637377,-430.0,0.00020547,2]
[362596702,1748370637386,-159.37,0.00020547,2]
[362596703,1748370637395,-1052.62,0.00020547,2]
[362596704,1748370637405,-430.0,0.00020547,2]
[362596705,1748370637413,-430.0,0.00020547,2]
[362596706,1748370637423,-430.0,0.00020547,2]
[362596707,1748370637433,-742.28,0.00020547,2]
[362596708,1748370637442,-430.0,0.00020547,2]
[362596709,1748370637451,-366.41200507,0.00020547,2]
[362596710,1748370637461,-430.0,0.00020547,2]
[362596711,1748370637471,-430.0,0.00020547,2]
[362596712,1748370637481,-479.31610259,0.00020547,2]
[362596713,1748370637490,-151.0,0.00020547,2]
[362596714,1748370637499,-229.717321,0.00020547,2]
[362596715,1748370637509,-430.0,0.00020547,2]
[362596716,1748370637519,-430.0,0.00020547,2]
[362596717,1748370637528,-430.0,0.00020547,2]
[362596718,1748370637538,-437.88,0.00020547,2]
[362596719,1748370637547,-430.0,0.00020547,2]
[362596720,1748370637557,-776.0,0.00020548,2]
[362596721,1748370637567,-4488.84941528,0.00020555,3]
[362596722,1748370637576,-776.0,0.00020576,2]
[362596723,1748370637585,-776.0,0.00020603,2]
[362596724,1748370637595,-207.4,0.0002062,2]
[362596725,1748370637604,-474.27086148,0.00020626,2]
[362596726,1748370637613,-776.0,0.00020631,2]
[362596727,1748370637623,-776.0,0.00020658,2]
[362596728,1748370637634,-776.0,0.00020685,2]
[362596729,1748370637643,-776.0,0.00020713,2]
[362596730,1748370637653,-776.0,0.0002074,2]
[362596731,1748370637664,-776.0,0.00020768,2]
[362596732,1748370637674,-776.0,0.00020795,2]
[362596733,1748370637683,-430.0,0.00020821,2]
[362596734,1748370637693,-687.01,0.00020821,2]